bitfinex/quotes_BTCUSD_20250119
["timestamp","ask_amount","ask_price","bid_price","bid_amount"]
[1737329937096,0.80735754,100140.0,100130.0,0.0014294]
[1737329937496,0.49988,100120.0,100110.0,0.000429]
[1737329937780,0.69887508,100120.0,100110.0,0.000429]
[1737329937978,0.74887508,100120.0,100110.0,0.000429]
[1737329938287,0.6499,100100.0,100090.0,0.000429]
[1737329938493,0.1,100090.0,100080.0,0.0004282]
[1737329938697,0.19940754,100090.0,100080.0,0.0004282]
[1737329939110,0.34940754,100090.0,100080.0,0.0004282]
[1737329939234,0.09949754,100090.0,100080.0,0.0004282]
[1737329939434,0.49940754,100090.0,100080.0,0.0004282]
[1737329939661,0.19940754,100090.0,100080.0,0.0004282]
[1737329940423,0.09949754,100090.0,100080.0,0.0004282]
[1737329940724,0.23937731,100090.0,100080.0,0.0004282]
[1737329940928,0.63937731,100090.0,100080.0,0.0004282]
[1737329941131,0.48937731,100090.0,100080.0,0.0004282]
[1737329941303,0.49946886,100090.0,100080.0,0.0004282]
[1737329941515,0.54992,100080.0,100070.0,6e-05]
[1737329941720,0.19941754,100080.0,100070.0,6e-05]
[1737329942245,0.24449754,100080.0,100070.0,0.09999]
[1737329942484,0.09949754,100080.0,100070.0,6e-05]
[1737329942674,0.34941754,100080.0,100070.0,6e-05]
[1737329942976,0.49941754,100080.0,100070.0,6e-05]
[1737329943151,0.44891508,100080.0,100070.0,6e-05]
[1737329943360,0.49941754,100080.0,100070.0,6e-05]
[1737329943563,0.49941754,100080.0,100050.0,0.0004295]
[1737329943564,0.15,100070.0,100050.0,0.0004295]
[1737329943771,0.29943754,100060.0,100050.0,0.0004295]
[1737329944085,0.29943754,100060.0,100030.0,0.0004282]
[1737329944086,0.39996,100040.0,100030.0,0.0004282]
[1737329944293,0.44895508,100040.0,100030.0,0.0004282]
[1737329944505,0.09949754,100040.0,100030.0,0.0004282]
[1737329944859,0.145,100050.0,100030.0,0.2003522]
[1737329945057,0.24449754,100040.0,100030.0,0.0004282]
[1737329945258,0.09999311,100040.0,100030.0,0.0004282]
[1737329945460,0.3502986,100050.0,100030.0,0.0004282]
[1737329945835,0.24949754,100040.0,100030.0,0.00057786]
[1737329946040,0.34945754,100040.0,100030.0,0.00057786]
[1737329946267,0.24997,100030.0,100020.0,0.0004295]
[1737329946439,0.19946754,100030.0,100020.0,0.00092507]
[1737329946801,0.09949754,100030.0,100020.0,0.00092507]
[1737329947201,0.23940589,100030.0,100020.0,0.00092507]
[1737329947602,0.38940589,100030.0,100020.0,0.00092507]
[1737329947960,0.39999,100010.0,100000.0,0.0062]
[1737329948165,0.39999,100010.0,99940.0,7e-05]
[1737329948166,0.295,99971.0,99940.0,7e-05]
[1737329948336,0.54403194,99971.0,99940.0,7e-05]
[1737329948489,0.29400294,99971.0,99962.0,0.0197295]
[1737329948847,0.34453454,99963.0,99962.0,0.0197295]
[1737329949147,0.145,99963.0,99962.0,0.0197295]
[1737329949381,0.145,99983.0,99962.0,0.0197295]
[1737329949558,0.00049505,99963.0,99962.0,0.0197295]
[1737329951033,0.35957909,99963.0,99962.0,0.0197295]
[1737329951744,0.25954209,99963.0,99940.0,7e-05]
[1737329951954,0.245059,99941.0,99940.0,7e-05]
[1737329952188,0.24449754,99941.0,99940.0,7e-05]
[1737329952413,0.145,99952.0,99940.0,7e-05]
[1737329952609,0.00049505,99963.0,99940.0,7e-05]
[1737329952814,0.00049505,99963.0,99940.0,0.09956754]
[1737329953014,0.00049505,99963.0,99944.0,0.0824]
[1737329953389,0.145,99958.0,99940.0,7e-05]
[1737329953615,0.145,99956.0,99940.0,7e-05]
[1737329953813,0.09949754,99955.0,99940.0,7e-05]
[1737329954013,0.00049505,99963.0,99939.0,0.19979638]
[1737329954297,0.145,99945.0,99921.0,0.0016819]
[1737329954495,0.0145495,99962.0,99921.0,0.0016819]
[1737329954496,0.1425,99922.0,99921.0,0.0016819]
[1737329954681,0.34207554,99922.0,99921.0,0.0016819]
[1737329954914,0.34207554,99922.0,99921.0,0.012056]
[1737329955388,0.1425,99924.0,99921.0,0.012056]
[1737329955590,0.1425,99930.0,99921.0,0.012056]
[1737329955823,0.24199754,99930.0,99921.0,0.012056]
[1737329956048,0.24199754,99930.0,99921.0,0.01087511]
[1737329956201,0.34207554,99922.0,99921.0,0.01087511]
[1737329956571,0.1425,99930.0,99921.0,0.01087511]
[1737329956773,0.1425,99928.0,99921.0,0.01087511]
[1737329957157,0.242578,99922.0,99921.0,0.01087511]
[1737329957345,0.34207554,99922.0,99921.0,0.01087511]
[1737329957493,0.24199754,99922.0,99921.0,0.01087511]
[1737329957688,0.34207554,99922.0,99921.0,0.01087511]
[1737329957893,0.09949754,99922.0,99921.0,0.01087511]
[1737329958094,0.19957554,99922.0,99921.0,0.01087511]
[1737329958356,0.24199754,99922.0,99921.0,0.01087511]
[1737329958569,0.34207554,99922.0,99921.0,0.01087511]
[1737329958899,0.19212099,99922.0,99921.0,0.01087511]
[1737329959667,0.09949754,99922.0,99921.0,0.01087511]
[1737329959862,0.00049475,99930.0,99921.0,0.01087511]
[1737329960027,0.09999229,99930.0,99921.0,0.01087511]
[1737329960229,0.100078,99922.0,99921.0,0.01087511]
[1737329960450,0.19957554,99922.0,99921.0,0.01087511]
[1737329960625,0.34957554,99922.0,99921.0,0.01087511]
[1737329960830,0.19957554,99922.0,99921.0,0.01087511]
[1737329961041,0.19957554,99922.0,99921.0,1.1e-07]
[1737329961245,0.34957554,99922.0,99921.0,1.1e-07]
[1737329961444,0.15,99904.0,99900.0,0.113]
[1737329961646,0.34959654,99901.0,99900.0,0.113]
[1737329962545,0.09949754,99901.0,99900.0,0.06036821]
[1737329962750,0.19959654,99901.0,99900.0,0.06036821]
[1737329963304,0.19959654,99901.0,99835.0,0.0149299]
[1737329963305,0.100129,99871.0,99870.0,7e-07]
[1737329963515,0.19962654,99871.0,99870.0,7e-07]
[1737329963681,0.34962654,99871.0,99870.0,7e-07]
[1737329963881,0.19962654,99871.0,99870.0,7e-07]
[1737329964144,0.34962654,99871.0,99870.0,7e-07]
[1737329964299,0.100148,99852.0,99835.0,0.0149299]
[1737329964503,0.50942554,99852.0,99835.0,0.0149299]
[1737329964748,0.100194,99806.0,99805.0,7e-05]
[1737329964960,0.19969154,99806.0,99805.0,0.00021804]
[1737329965152,0.19969154,99806.0,99805.0,4e-08]
[1737329965423,0.49969154,99806.0,99805.0,4e-08]
[1737329965727,0.09949754,99806.0,99805.0,4e-08]
[1737329966014,0.19969154,99806.0,99805.0,4e-08]
[1737329966567,0.09949754,99806.0,99805.0,4e-08]
[1737329966776,0.19333316,99851.0,99805.0,4e-08]
[1737329966971,0.09949754,99824.0,99806.0,0.0452]
[1737329967187,0.2003,99850.0,99806.0,0.0452]
[1737329967379,0.00517008,99851.0,99805.0,4e-08]
[1737329967380,0.15,99806.0,99805.0,4e-08]
[1737329967596,0.19969154,99806.0,99805.0,4e-08]
[1737329968416,0.200364,99818.0,99805.0,4e-08]
[1737329968417,0.15,99848.0,99805.0,4e-08]
[1737329968624,0.09949754,99821.0,99805.0,4e-08]
[1737329968803,0.19969154,99806.0,99805.0,4e-08]
[1737329969763,0.34969154,99806.0,99805.0,4e-08]
[1737329969967,0.100229,99771.0,99751.0,0.0004]
[1737329970257,0.400243,99757.0,99751.0,0.0004]
[1737329970475,0.74974054,99757.0,99751.0,0.0004]
[1737329970596,0.74974054,99757.0,99736.0,0.0149299]
[1737329970597,0.350263,99737.0,99736.0,0.0149299]
[1737329970791,0.350263,99737.0,99710.0,4.186e-05]
[1737329970792,0.100288,99712.0,99710.0,4.186e-05]
[1737329971014,0.19978554,99712.0,99711.0,0.00089888]
[1737329971221,0.20802121,99712.0,99711.0,0.00089888]
[1737329971428,0.080278,99722.0,99721.0,0.19723706]
[1737329971629,0.39949754,99722.0,99721.0,0.248146]
[1737329971842,0.19977554,99722.0,99721.0,0.19723706]
[1737329972046,0.00834922,99742.0,99721.0,0.19723706]
[1737329972319,0.09949754,99729.0,99721.0,0.19723706]
[1737329972467,0.19977554,99722.0,99721.0,0.19723706]
[1737329972682,0.19977554,99722.0,99721.0,0.18716053]
[1737329972905,0.09949754,99722.0,99721.0,0.18716053]
[1737329973227,0.09949754,99722.0,99711.0,0.00089888]
[1737329973228,0.09949754,99722.0,99711.0,0.10089888]
[1737329973530,0.09949754,99713.0,99711.0,0.00089888]
[1737329973685,0.09949754,99712.0,99711.0,0.00894119]
[1737329973889,0.48319344,99789.0,99739.0,0.1]
[1737329974091,0.48319344,99789.0,99769.0,0.1]
[1737329974092,0.09949754,99773.0,99769.0,0.1]
[1737329974287,0.09949754,99773.0,99763.0,0.1]
[1737329974493,0.09949754,99773.0,99766.0,0.1]
[1737329974807,0.09949754,99773.0,99736.0,0.0491]
[1737329974808,0.00489904,99776.0,99775.0,0.1]
[1737329975021,0.10439658,99776.0,99736.0,0.0491]
[1737329975306,0.10439658,99776.0,99736.0,0.04760288]
[1737329975307,0.09949754,99748.0,99736.0,0.04760288]
[1737329975538,0.09949754,99739.0,99736.0,0.04760288]
[1737329975737,0.100263,99737.0,99736.0,0.04760288]
[1737329975940,0.19976054,99737.0,99736.0,0.04760288]
[1737329976148,0.200472,99765.0,99736.0,0.04760288]
[1737329976149,0.3,99793.0,99747.0,0.1]
[1737329976294,0.002,99823.0,99740.0,0.1]
[1737329976295,0.09949754,99748.0,99740.0,0.1]
[1737329976496,0.09949754,99748.0,99736.0,0.04760288]
[1737329976695,0.09949754,99748.0,99747.0,0.1]
[1737329977206,0.09949754,99748.0,99736.0,0.04760288]
[1737329977394,0.09949754,99748.0,99741.0,0.1]
[1737329977596,0.09949754,99748.0,99736.0,0.04760288]
[1737329977823,0.09949754,99748.0,99736.0,0.19760288]
[1737329978024,0.09949754,99748.0,99747.0,0.1]
[1737329978222,0.09949754,99748.0,99747.0,0.08992779]
[1737329978425,0.09949754,99748.0,99745.0,0.15]
[1737329978681,0.09949754,99748.0,99745.0,0.08992779]
[1737329978841,0.00090532,99776.0,99770.0,0.08992779]
[1737329979043,0.00090532,99776.0,99736.0,0.24813188]
[1737329979044,0.00090532,99776.0,99775.0,0.08992779]
[1737329979279,0.00090532,99776.0,99775.0,0.48805033]
[1737329979486,0.00090574,99848.0,99825.0,0.15]
[1737329979678,0.09949754,99842.0,99834.0,0.08992779]
[1737329979812,0.09949754,99842.0,99841.0,0.08992779]
[1737329980014,0.09949754,99842.0,99795.0,0.0469]
[1737329980015,0.100204,99796.0,99795.0,0.0469]
[1737329980271,0.19970154,99796.0,99795.0,0.0469]
[1737329980474,0.20041,99795.0,99769.0,0.15]
[1737329980680,0.09949754,99788.0,99762.0,0.15]
[1737329980892,0.09949754,99788.0,99782.0,0.13816569]
[1737329981068,0.01183431,99839.0,99790.0,0.13816569]
[1737329981247,0.09949754,99811.0,99761.0,0.13816569]
[1737329981451,0.3,99799.0,99759.0,0.13816569]
[1737329981705,0.200408,99796.0,99758.0,0.12816569]
[1737329981905,0.15,99790.0,99753.0,0.12816569]
[1737329982052,0.15,99790.0,99723.0,0.0778]
[1737329982053,0.3,99784.0,99744.0,0.12816569]
[1737329982246,0.02183431,99796.0,99731.0,0.12816569]
[1737329982445,0.09949754,99785.0,99762.0,0.12816569]
[1737329982648,0.02183431,99827.0,99766.0,0.12816569]
[1737329982900,0.02183431,99827.0,99762.0,0.00049888]
[1737329982901,0.09949754,99777.0,99762.0,0.00049888]
[1737329983229,0.100237,99763.0,99762.0,0.00049888]
[1737329983344,0.12207131,99763.0,99762.0,0.00049888]
[1737329983711,0.100276,99724.0,99723.0,0.0487]
[1737329983919,0.09949754,99724.0,99723.0,0.0487]
[1737329984163,0.00802796,99763.0,99726.0,0.12816569]
[1737329984389,0.00802796,99763.0,99723.0,0.0487]
[1737329984390,0.100276,99724.0,99723.0,0.0487]
[1737329984617,0.09949754,99724.0,99723.0,0.0487]
[1737329984846,0.02183431,99773.0,99723.0,0.0487]
[1737329985073,0.200501,99750.0,99724.0,0.12816569]
[1737329985262,0.09999921,99782.0,99723.0,0.0487]
[1737329985263,0.09949754,99749.0,99736.0,0.12816569]
[1737329985443,0.09949754,99737.0,99706.0,0.0004304]
[1737329985642,0.200507,99747.0,99706.0,0.0004304]
[1737329985643,0.19978554,99712.0,99706.0,0.0004304]
[1737329986043,0.09949754,99712.0,99709.0,0.12816569]
[1737329986274,0.00835779,99750.0,99718.0,0.12816569]
[1737329986494,0.09949754,99748.0,99718.0,0.12816569]
[1737329986652,0.09949754,99748.0,99726.0,0.12816569]
[1737329986855,0.30002254,99738.0,99708.0,0.12816569]
[1737329987170,0.200529,99736.0,99721.0,0.12816569]
[1737329987402,0.09949754,99735.0,99723.0,0.12816569]
[1737329987702,0.00049393,99748.0,99729.0,0.12816569]
[1737329987860,0.09949754,99747.0,99725.0,0.12816569]
[1737329988068,0.07949754,99747.0,99706.0,0.0004304]
[1737329988640,0.00049393,99748.0,99706.0,0.0004304]
[1737329988641,0.09949754,99729.0,99706.0,0.0004304]
[1737329988754,0.09949754,99729.0,99708.0,0.12816569]
[1737329988975,0.09949754,99729.0,99713.0,0.12816569]
[1737329989193,0.100288,99712.0,99706.0,0.0004304]
[1737329989407,0.19978554,99712.0,99706.0,0.0004304]
[1737329989606,0.48319344,99764.0,99710.0,0.12820755]
[1737329989841,0.100263,99738.0,99722.0,0.12816569]
[1737329990079,0.09949754,99737.0,99732.0,0.12816569]
[1737329990268,0.09949754,99737.0,99710.0,4.186e-05]
[1737329990269,0.100273,99728.0,99724.0,0.12816569]
[1737329990471,0.00049363,99728.0,99724.0,0.12816569]
[1737329990849,0.00049363,99728.0,99727.0,0.12816569]
[1737329991050,0.300821,99727.0,99726.0,0.12816569]
[1737329991250,0.00049363,99728.0,99716.0,0.12816569]
[1737329991460,0.09949754,99727.0,99718.0,0.12816569]
[1737329991658,0.100281,99719.0,99718.0,0.12816569]
[1737329992058,0.20057,99716.0,99710.0,4.186e-05]
[1737329992418,0.09949754,99715.0,99713.0,0.12816569]
[1737329992620,0.00049363,99728.0,99713.0,0.12816569]
[1737329992835,0.09949754,99727.0,99717.0,0.12816569]
[1737329993035,0.00049363,99728.0,99727.0,0.12816569]
[1737329993206,0.00049363,99728.0,99727.0,0.32766323]
[1737329993383,0.00049363,99728.0,99727.0,0.09949754]
[1737329993585,0.00049363,99728.0,99715.0,0.0453]
[1737329993753,0.09949754,99727.0,99714.0,0.12816569]
[1737329993956,0.100286,99714.0,99713.0,0.12816569]
[1737329994381,0.100286,99714.0,99711.0,1e-07]
[1737329994382,0.100288,99712.0,99711.0,1e-07]
[1737329994635,0.100309,99691.0,99690.0,0.01]
[1737329995036,0.200615,99694.0,99661.0,0.0469]
[1737329995037,0.100329,99672.0,99661.0,0.0469]
[1737329995248,0.100329,99672.0,99671.0,0.0003]
[1737329995442,0.19982654,99672.0,99671.0,0.0003]
[1737329995908,0.100363,99638.0,99637.0,0.0086199]
[1737329996329,0.15,99687.0,99637.0,0.0086199]
[1737329996530,0.09949754,99666.0,99637.0,0.0086199]
[1737329997006,0.3,99716.0,99642.0,0.1]
[1737329997179,0.00049302,99666.0,99642.0,0.09949754]
[1737329997380,0.09949754,99665.0,99637.0,0.0086199]
[1737329997675,0.00049302,99666.0,99637.0,0.0086199]
[1737329997880,0.09999056,99666.0,99637.0,0.0086199]
[1737329998024,0.00049302,99666.0,99639.0,0.1311]
[1737329998225,0.00049302,99666.0,99640.0,0.09949754]
[1737329998623,0.10034,99661.0,99640.0,0.09949754]
[1737329998825,0.00049302,99666.0,99646.0,0.1]
[1737329999047,0.00049302,99666.0,99649.0,0.1]
[1737329999247,0.00049302,99666.0,99650.0,0.09949754]
[1737329999480,0.10082802,99666.0,99650.0,0.09949754]
[1737329999627,0.00049302,99666.0,99655.0,0.100345]
[1737329999826,0.00049302,99666.0,99656.0,0.09949754]
[1737330000029,0.09999056,99666.0,99619.0,0.05686676]
[1737330000228,0.00049302,99666.0,99640.0,0.09949754]
[1737330000435,0.00049302,99666.0,99639.0,0.13101216]
[1737330000436,0.09999056,99666.0,99639.0,0.13101216]
[1737330000687,0.100346,99655.0,99639.0,0.13101216]
[1737330000834,0.100339,99662.0,99640.0,0.09949754]
[1737330001032,0.19993022,99676.0,99640.0,0.09949754]
[1737330001258,0.15,99686.0,99640.0,0.09999056]
[1737330001480,0.200689,99657.0,99640.0,0.00049302]
[1737330001682,0.09949754,99675.0,99640.0,0.00049302]
[1737330001683,0.10035,99651.0,99640.0,0.00049302]
[1737330001856,0.09949754,99675.0,99640.0,0.00049302]
[1737330001857,0.100347,99654.0,99640.0,0.00049302]
[1737330002059,0.09949754,99675.0,99640.0,0.00049302]
[1737330002443,0.10036,99641.0,99640.0,0.00049302]
[1737330002672,0.15,99664.0,99640.0,0.00049302]
[1737330002888,1.5,99797.0,99640.0,0.00049302]
[1737330002889,0.15,99698.0,99640.0,0.00049302]
[1737330003096,0.10033,99671.0,99641.0,0.09949754]
[1737330003303,0.200547,99727.0,99642.0,0.03587826]
[1737330003495,0.09949754,99713.0,99669.0,0.15]
[1737330003696,0.48319344,99756.0,99651.0,0.082]
[1737330003697,0.3,99760.0,99690.0,0.0491]
[1737330003920,0.0456,99788.0,99690.0,0.0491]
[1737330003921,0.100269,99731.0,99698.0,0.082]
[1737330004156,0.0456,99788.0,99698.0,0.082]
[1737330004157,0.100258,99743.0,99716.0,0.100284]
[1737330004301,0.3,99784.0,99716.0,0.100284]
[1737330004302,0.00895267,99767.0,99731.0,0.15]
[1737330004495,0.09949754,99766.0,99734.0,0.15]
[1737330004702,0.00090532,99767.0,99735.0,0.24949754]
[1737330005030,0.100188,99812.0,99786.0,0.15]
[1737330005232,0.09949754,99810.0,99802.0,0.15]
[1737330005416,0.09949754,99810.0,99790.0,0.350419]
[1737330005620,0.09949754,99810.0,99791.0,0.0350419]
[1737330005826,0.00139997,99827.0,99810.0,0.15]
[1737330006134,0.200268,99866.0,99832.0,0.15]
[1737330006347,0.09949754,99860.0,99812.0,0.15]
[1737330006556,0.09949754,99860.0,99848.0,0.15]
[1737330006727,0.09949754,99860.0,99856.0,0.250143]
[1737330006931,0.09949754,99860.0,99842.0,0.200315]
[1737330006932,0.01,99866.0,99861.0,0.15]
[1737330007183,0.00646916,99866.0,99865.0,0.15]
[1737330007382,0.0131086,99932.0,99887.0,0.15]
[1737330007538,0.09949754,99895.0,99874.0,0.15]
[1737330007912,0.0131086,99932.0,99895.0,0.250105]
[1737330008103,0.0131086,99932.0,99895.0,0.37461304]
[1737330008311,0.0131086,99932.0,99895.0,0.15]
[1737330008597,0.0131086,99932.0,99899.0,0.15]
[1737330008889,0.0131086,99932.0,99896.0,0.0463]
[1737330008890,0.0131086,99932.0,99911.0,0.250089]
[1737330009094,0.0131086,99932.0,99906.0,0.100093]
[1737330009333,0.0131086,99932.0,99896.0,0.0463]
[1737330009508,0.0131086,99932.0,99911.0,0.100089]
[1737330009644,0.0131086,99932.0,99911.0,0.09949754]
[1737330009916,0.00832075,99921.0,99858.0,0.00100095]
[1737330010171,0.0131086,99932.0,99888.0,0.1]
[1737330010374,0.09949754,99911.0,99876.0,0.200248]
[1737330010575,0.0131086,99932.0,99875.0,0.39045534]
[1737330010576,0.09949754,99908.0,99875.0,0.39045534]
[1737330010816,0.09949754,99908.0,99907.0,0.100093]
[1737330011197,0.0131086,99932.0,99911.0,0.250089]
[1737330012014,0.0131086,99932.0,99911.0,0.34958654]
[1737330012222,0.0131086,99932.0,99929.0,0.250071]
[1737330012645,0.0131086,99932.0,99929.0,0.39856854]
[1737330012862,0.0131086,99932.0,99929.0,0.49856854]
[1737330013070,7e-05,99940.0,99939.0,0.250061]
[1737330013299,7e-05,99940.0,99939.0,0.09949754]
[1737330013797,7e-05,99940.0,99939.0,0.19955854]
[1737330013995,7e-05,99940.0,99929.0,0.049]
[1737330014198,7e-05,99940.0,99933.0,0.100066]
[1737330014419,7e-05,99940.0,99934.0,0.09949754]
[1737330014800,7e-05,99940.0,99907.0,0.049]
[1737330015023,0.100066,99934.0,99917.0,0.09949754]
[1737330015197,7e-05,99940.0,99918.0,0.09949754]
[1737330015410,7e-05,99940.0,99907.0,0.049]
[1737330015677,7e-05,99940.0,99834.0,0.01963889]
[1737330015678,7e-05,99940.0,99908.0,0.09949754]
[1737330015827,0.200066,99967.0,99908.0,0.09949754]
[1737330016034,0.15,99939.0,99881.0,0.0486]
[1737330016223,0.15,99921.0,99882.0,0.09949754]
[1737330016441,0.20019,99905.0,99882.0,0.09949754]
[1737330016645,0.15592117,99904.0,99853.0,0.1]
[1737330016843,0.15,99883.0,99836.0,0.1]
[1737330017174,0.09949754,99882.0,99837.0,0.09949754]
[1737330017570,0.100138,99862.0,99837.0,0.09949754]
[1737330017774,0.09819205,99882.0,99875.0,0.15]
[1737330017995,0.3,99929.0,99886.0,0.15]
[1737330018210,0.09949754,99912.0,99896.0,0.100103]
[1737330018353,0.3,99965.0,99910.0,0.1497]
[1737330018551,0.100064,99936.0,99924.0,0.1497]
[1737330018758,0.0003,99978.0,99900.0,0.18001294]
[1737330018759,0.0003,99986.0,99929.0,0.1497]
[1737330018976,0.200002,99999.0,99900.0,0.18001294]
[1737330018977,0.200128,99936.0,99930.0,0.09949754]
[1737330019202,0.200052,99974.0,99935.0,0.09949754]
[1737330019427,0.0003,99969.0,99877.0,0.0486]
[1737330019639,0.100077,99923.0,99886.0,0.1]
[1737330019845,0.0003,99918.0,99886.0,0.09949754]
[1737330020051,0.350144,99928.0,99877.0,0.0486]
[1737330020052,0.0003,99905.0,99877.0,0.0486]
[1737330020257,0.100093,99907.0,99881.0,0.100118]
[1737330020466,0.0003,99942.0,99885.0,0.1497]
[1737330020674,0.05066248,100010.0,99887.0,0.09949754]
[1737330020675,0.0003,99926.0,99887.0,0.09949754]
[1737330020903,0.15,99962.0,99887.0,0.09949754]
[1737330020904,0.200114,99943.0,99887.0,0.09949754]
[1737330021103,0.200055,99973.0,99877.0,0.0486]
[1737330021104,0.100407,99893.0,99892.0,0.09949754]
[1737330021364,0.100407,99893.0,99877.0,0.0486]
[1737330021365,0.09999921,99926.0,99877.0,0.0486]
[1737330021549,0.0003,99933.0,99878.0,0.11932754]
[1737330021751,0.15,99949.0,99898.0,0.100101]
[1737330021946,0.200101,99950.0,99878.0,0.11932754]
[1737330021947,0.0003,99962.0,99921.0,0.100078]
[1737330022219,0.39999921,100000.0,99932.0,0.100067]
[1737330022220,0.0003,99981.0,99932.0,0.100067]
[1737330022446,0.100037,99963.0,99940.0,0.100059]
[1737330022569,0.00830371,99993.0,99933.0,0.14799754]
[1737330022570,0.0003,99991.0,99941.0,0.10950344]
[1737330022774,0.00119587,99983.0,99952.0,0.09949754]
[1737330022968,0.0003,99957.0,99952.0,0.09949754]
[1737330023170,0.0003,99956.0,99933.0,0.0485]
[1737330023392,0.0003,99949.0,99934.0,0.09949754]
[1737330023595,0.0003,99926.0,99905.0,0.0485]
[1737330023802,0.0003,99918.0,99906.0,0.09949754]
[1737330024009,0.250094,99906.0,99905.0,0.0485]
[1737330024212,0.100406,99894.0,99893.0,0.29748978]
[1737330024435,0.250406,99894.0,99893.0,0.29748978]
[1737330024604,0.15,99914.0,99893.0,0.29748978]
[1737330024605,0.200183,99909.0,99893.0,0.29748978]
[1737330024812,0.3,99934.0,99882.0,0.0004263]
[1737330024813,0.100117,99883.0,99882.0,0.0004263]
[1737330025003,0.10089444,99926.0,99900.0,0.100099]
[1737330025004,0.100075,99925.0,99900.0,0.100099]
[1737330025295,0.02753445,99941.0,99904.0,0.24919754]
[1737330025493,0.0003,99968.0,99922.0,0.09949754]
[1737330025687,0.0003,99968.0,99900.0,0.18001294]
[1737330025688,0.0003,99985.0,99938.0,0.09949754]
[1737330025935,0.200016,99992.0,99946.0,0.1]
[1737330026134,0.0003,99990.0,99962.0,0.09949754]
[1737330026347,0.199991,100010.0,99947.0,0.09949754]
[1737330026507,0.4017335,100020.0,99963.0,0.2497]
[1737330026705,0.2017565,100020.0,99982.0,0.24941554]
[1737330026961,0.0017955,100020.0,99982.0,0.28435709]
[1737330027270,0.0003,100010.0,99982.0,0.28435709]
[1737330027413,0.00119587,99983.0,99955.0,0.0499]
[1737330027627,0.00089587,99983.0,99968.0,0.09949754]
[1737330027847,0.00089587,99983.0,99973.0,0.09949754]
[1737330028066,0.00089587,99983.0,99974.0,0.09949754]
[1737330028268,0.00089587,99983.0,99982.0,0.09949754]
[1737330028604,0.00089587,99983.0,99982.0,0.19951554]
[1737330028841,0.00089587,99983.0,99982.0,0.09949754]
[1737330029643,0.0003,99976.0,99956.0,0.0806]
[1737330029842,0.10002,99980.0,99957.0,0.09949754]
[1737330030052,0.00089587,99983.0,99929.0,0.0821]
[1737330030053,0.100064,99936.0,99929.0,0.0821]
[1737330030212,0.0003,99976.0,99930.0,0.09949754]
[1737330030440,0.2017655,100020.0,99961.0,0.09949754]
[1737330030642,0.0003,99988.0,99937.0,0.1]
[1737330030881,0.200025,99988.0,99942.0,0.1]
[1737330031158,0.01006749,100020.0,99932.0,0.1497]
[1737330031333,0.0003,99960.0,99937.0,0.09949754]
[1737330031538,0.100062,99938.0,99937.0,0.09949754]
[1737330031760,0.10007,99930.0,99926.0,0.0499]
[1737330031955,0.10007,99930.0,99733.0,0.5]
[1737330031956,0.0003,99915.0,99896.0,0.0454]
[1737330032129,0.100102,99898.0,99897.0,0.09949754]
[1737330032334,0.250103,99897.0,99896.0,0.0454]
[1737330032493,0.250103,99897.0,99837.0,0.200325]
[1737330032494,0.100117,99883.0,99863.0,0.0454]
[1737330032717,0.250417,99883.0,99863.0,0.0454]
[1737330032930,0.2533333,99883.0,99825.0,0.200349]
[1737330033126,0.2533333,99883.0,99832.0,0.0454]
[1737330033445,0.20253084,99883.0,99852.0,0.349994]
[1737330033648,0.0029163,99883.0,99868.0,0.200264]
[1737330033897,0.0029163,99883.0,99838.0,0.1]
[1737330033898,0.0029163,99883.0,99882.0,0.14812384]
[1737330034115,0.200183,99909.0,99882.0,0.16293622]
[1737330034317,0.09999921,99964.0,99882.0,0.16293622]
[1737330034318,0.0003,99947.0,99891.0,0.09949754]
[1737330034521,0.0003,99962.0,99913.0,0.09949754]
[1737330034719,0.00089587,99983.0,99942.0,0.1497]
[1737330034858,0.0003,99979.0,99925.0,0.1497]
[1737330035059,0.00089587,99983.0,99938.0,0.2302]
[1737330035260,0.00089587,99983.0,99943.0,0.1]
[1737330035465,0.00089587,99983.0,99976.0,0.09949754]
[1737330035665,0.00089587,99983.0,99982.0,0.08949754]
[1737330035865,0.10121287,99983.0,99982.0,0.0628395]
[1737330036068,0.0003,99947.0,99913.0,0.0488]
[1737330036266,0.0003,99953.0,99927.0,0.09949754]
[1737330036495,0.0003,99937.0,99927.0,0.09949754]
[1737330036726,0.0003,99953.0,99921.0,0.100078]
[1737330036907,0.0003,99963.0,99928.0,0.09949754]
[1737330037107,0.0003,99973.0,99937.0,0.09949754]
[1737330037313,0.100018,99982.0,99952.0,0.09949754]
[1737330037646,0.0003,99982.0,99954.0,0.09949754]
[1737330037850,0.00089587,99983.0,99966.0,0.09949754]
[1737330038088,0.00089587,99983.0,99943.0,0.0475]
[1737330038215,0.0003,99982.0,99944.0,0.09949754]
[1737330038423,0.00089587,99983.0,99950.0,0.19954654]
[1737330038622,0.00089587,99983.0,99956.0,0.09949754]
[1737330038823,0.100019,99981.0,99956.0,0.09949754]
[1737330039004,0.00089587,99983.0,99956.0,0.09949754]
[1737330039210,0.00202567,99982.0,99956.0,0.09949754]
[1737330039413,0.00202567,99982.0,99973.0,0.09949754]
[1737330039625,0.20034,99980.0,99943.0,0.0475]
[1737330039851,0.0003,99971.0,99950.0,0.09949754]
[1737330040054,0.0003,99975.0,99950.0,0.09949754]
[1737330040302,0.100046,99954.0,99953.0,0.56735079]
[1737330040503,0.00204284,99974.0,99953.0,0.66684833]
[1737330040703,0.15,100010.0,99966.0,0.09949754]
[1737330040704,0.200026,99987.0,99966.0,0.09949754]
[1737330040904,0.200026,99987.0,99943.0,0.0475]
[1737330040905,0.100037,99963.0,99943.0,0.0475]
[1737330041110,0.0017955,100020.0,99943.0,0.0475]
[1737330041111,0.01848778,100030.0,99959.0,0.1]
[1737330041348,0.09949754,99991.0,99935.0,0.1]
[1737330041514,0.100088,99912.0,99890.0,0.57275684]
[1737330041732,0.100088,99912.0,99895.0,0.1]
[1737330041914,0.100088,99912.0,99894.0,0.15]
[1737330041915,0.100088,99912.0,99890.0,0.52385684]
[1737330042176,0.19958554,99912.0,99890.0,0.52385684]
[1737330042311,0.20774544,99912.0,99890.0,0.52385684]
[1737330042511,0.20774544,99912.0,99882.0,0.0004263]
[1737330042512,0.100117,99883.0,99882.0,0.0004263]
[1737330042711,0.19961454,99883.0,99882.0,0.0004263]
[1737330043161,0.19961454,99883.0,99882.0,3e-07]